bitfinex/quotes_ETHUSD_20250426
["timestamp","ask_amount","ask_price","bid_price","bid_amount"]
[1745687225465,4.666,1803.6,1803.4,5.54507414]
[1745687226117,4.666,1803.6,1803.5,0.51785459]
[1745687226365,4.666,1803.6,1803.5,6.06262864]
[1745687226657,4.666,1803.6,1803.5,5.54477405]
[1745687227123,4.666,1803.6,1803.5,6.36507405]
[1745687227330,4.666,1803.6,1803.5,7.55608887]
[1745687227639,4.666,1803.6,1803.5,8.23349536]
[1745687227821,4.666,1803.6,1803.5,11.75085151]
[1745687228253,5.99938409,1804.1,1803.8,0.8203]
[1745687228533,4.667,1804.0,1803.9,5.54335152]
[1745687229232,4.667,1804.0,1803.8,6.36397023]
[1745687229647,4.667,1804.0,1803.9,5.54354454]
[1745687231164,0.8195,1804.4,1804.1,5.54288311]
[1745687231326,4.666,1804.3,1804.1,5.54288311]
[1745687232133,4.666,1804.3,1804.0,5.54317106]
[1745687233043,4.666,1804.3,1804.0,11.08620488]
[1745687233269,4.666,1804.3,1804.1,5.54282939]
[1745687235246,16.643,1804.5,1804.4,5.54200842]
[1745687235560,21.309,1804.5,1804.4,6.34500842]
[1745687235745,22.18473352,1805.2,1804.6,5.54109818]
[1745687236064,5.54039696,1805.0,1804.6,5.54131641]
[1745687236537,0.8046,1804.9,1804.6,5.54131641]
[1745687237271,6.34509374,1804.9,1804.5,5.54156072]
[1745687237770,0.8046,1804.9,1804.5,11.0830141]
[1745687237976,0.8046,1804.9,1804.6,5.54138968]
[1745687240260,0.8046,1804.9,1804.7,5.54103698]
[1745687240569,0.8244,1805.0,1804.7,5.54103698]
[1745687240971,6.36459236,1805.0,1804.6,6.64952628]
[1745687241173,6.36459236,1805.0,1804.6,5.54124197]
[1745687241742,5.54071043,1804.9,1804.4,6.34484963]
[1745687241952,6.36533379,1804.8,1804.4,6.34484963]
[1745687242154,4.659,1804.7,1804.4,11.88661476]
[1745687242375,4.659,1804.7,1804.5,5.54164595]
[1745687242577,4.659,1804.7,1804.5,5.5414862]
[1745687242990,4.659,1804.7,1804.4,7.04233728]
[1745687243305,4.659,1804.7,1804.4,6.34482353]
[1745687243462,4.659,1804.7,1804.4,5.54182353]
[1745687244698,10.20017443,1804.7,1804.3,6.33612961]
[1745687244997,10.20017443,1804.7,1804.3,5.54212961]
[1745687247799,10.20017443,1804.7,1804.1,6.29447198]
[1745687247800,6.3193543,1804.6,1804.1,6.29447198]
[1745687248001,6.3193543,1804.6,1804.2,5.54241779]
[1745687248301,0.7778,1804.6,1804.2,5.54241779]
[1745687249105,0.7778,1804.6,1804.2,5.54239475]
[1745687249264,0.7778,1804.6,1804.2,11.08478244]
[1745687249466,4.659,1804.7,1804.4,5.54194497]
[1745687249778,5.67898349,1804.7,1804.4,5.54194497]
[1745687252104,5.67898349,1804.7,1804.3,5.54218225]
[1745687252105,4.659,1804.7,1804.3,5.54218225]
[1745687252309,4.659,1804.7,1804.4,5.54189334]
[1745687252600,10.20015035,1804.7,1804.3,5.54215425]
[1745687252801,10.20015035,1804.7,1804.3,11.08429608]
[1745687253106,4.659,1804.7,1804.3,5.54214183]
[1745687254104,4.659,1804.7,1804.3,11.08424783]
[1745687255206,4.659,1804.7,1804.4,5.54197424]
[1745687256212,4.659,1804.7,1804.3,5.54214027]
[1745687256370,6.3593225,1804.6,1804.2,5.54259932]
[1745687256706,0.8177,1804.6,1804.3,5.54229163]
[1745687257972,0.8177,1804.6,1804.2,5.54244825]
[1745687258705,6.35913859,1804.6,1804.3,0.51699315]
[1745687259405,6.35913859,1804.6,1804.0,5.54308941]
[1745687259406,6.35460842,1804.4,1804.0,5.54308941]
[1745687259571,4.658,1804.3,1804.0,5.54308941]
[1745687259911,4.658,1804.3,1804.1,0.51731502]
[1745687260070,4.658,1804.3,1804.0,5.54308941]
[1745687260712,5.54285813,1804.2,1803.8,0.8018]
[1745687261055,0.8229,1804.0,1803.5,6.73565596]
[1745687261218,0.8229,1804.0,1803.3,5.54512687]
[1745687261219,5.54396972,1803.8,1803.3,5.54512687]
[1745687261373,5.54396972,1803.8,1803.6,0.51746753]
[1745687261880,11.02453223,1803.9,1803.4,5.54483834]
[1745687262187,11.02453223,1803.9,1803.5,6.06226266]
[1745687262573,11.02453223,1803.9,1803.5,5.5446487]
[1745687264717,11.02453223,1803.9,1803.4,5.54490915]
[1745687265435,11.02453223,1803.9,1803.5,5.54463451]
[1745687266188,5.54399049,1803.8,1803.4,5.54490915]
[1745687266731,12.12020367,1803.9,1803.4,5.54490915]
[1745687267331,5.4809,1803.9,1803.6,5.54431067]
[1745687269904,5.4809,1803.9,1803.5,5.5445709]
[1745687271337,11.02447399,1803.9,1803.5,5.5445709]
[1745687271730,5.4809,1803.9,1803.5,5.54456309]
[1745687272029,5.4809,1803.9,1803.5,11.08911398]
[1745687272235,5.4809,1803.9,1803.5,5.54455089]
[1745687272613,11.02446099,1803.9,1803.5,5.54455089]
[1745687273010,5.4809,1803.9,1803.5,5.54455089]
[1745687274550,5.4809,1803.9,1803.5,11.08911851]
[1745687274748,5.4809,1803.9,1803.5,5.54455089]
[1745687275244,5.4809,1803.9,1803.5,5.54477405]
[1745687276074,5.4809,1803.9,1803.5,11.08931991]
[1745687277455,5.4809,1803.9,1803.5,11.08910022]
[1745687278745,5.4809,1803.9,1803.6,5.54443099]
[1745687279049,5.4809,1803.9,1803.7,5.54402228]
[1745687279050,4.658,1803.9,1803.7,5.54402228]
[1745687279249,23.42928409,1804.1,1803.8,5.54379971]
[1745687279435,4.644,1804.0,1803.8,5.54379971]
[1745687279639,4.644,1804.0,1803.7,5.54394551]
[1745687281997,4.644,1804.0,1803.5,5.54462855]
[1745687282298,5.54419499,1803.7,1803.3,5.54526306]
[1745687282495,5.4259,1803.6,1803.2,6.31250586]
[1745687282642,10.97040185,1803.6,1803.2,6.31250586]
[1745687283152,5.5447779,1803.5,1803.1,5.6458669]
[1745687283675,5.5447779,1803.5,1803.2,0.51677617]
[1745687283904,5.5447779,1803.5,1803.1,5.6458669]
[1745687285303,10.97053346,1803.6,1803.2,5.54567788]
[1745687285763,16.51527003,1803.6,1803.1,5.6458669]
[1745687285963,10.97053346,1803.6,1803.1,5.6458669]
[1745687286170,5.54480108,1803.5,1803.1,5.64598731]
[1745687286368,5.4259,1803.6,1803.1,5.6458393]
[1745687286683,10.97053279,1803.6,1803.1,11.19172493]
[1745687286842,5.4259,1803.6,1803.2,6.06274089]
[1745687287141,5.4259,1803.6,1803.3,5.54521303]
[1745687287879,5.4259,1803.6,1803.3,5.54517038]
[1745687288045,4.644,1803.6,1803.4,5.54496608]
[1745687288970,4.644,1803.6,1803.3,5.54529839]
[1745687289588,10.18857859,1803.6,1803.4,0.51827312]
[1745687289890,10.94477859,1803.6,1803.4,0.51827312]
[1745687290195,10.94477859,1803.6,1803.2,5.54553093]
[1745687290492,10.94477859,1803.6,1803.3,0.51866385]
[1745687291147,5.4002,1803.6,1803.4,0.51866385]
[1745687291544,5.4002,1803.6,1803.2,5.54553093]
[1745687292048,5.4002,1803.6,1803.3,0.51866338]
[1745687292248,5.4002,1803.6,1803.4,0.51866338]
[1745687292459,10.94476492,1803.6,1803.4,0.51866338]
[1745687292786,10.94476492,1803.6,1803.2,5.54553093]
[1745687293455,10.94476492,1803.6,1803.3,0.51861142]
[1745687293788,10.94476492,1803.6,1803.4,0.51861142]
[1745687294490,10.94476492,1803.6,1803.3,0.51861142]
[1745687294790,10.94476492,1803.6,1803.2,5.54553093]
[1745687295189,5.54488169,1803.5,1803.1,6.44116643]
[1745687295392,10.94472489,1803.6,1803.1,5.64587413]
[1745687295591,5.4002,1803.6,1803.3,5.54515623]
[1745687295798,12.2995641,1803.8,1803.4,5.54500814]
[1745687296090,4.645,1803.5,1803.4,6.06376878]
[1745687296398,4.645,1803.5,1803.4,0.51876064]
[1745687297677,4.645,1803.5,1803.4,6.06384215]
[1745687299362,6.75558409,1803.8,1803.6,5.54441583]
[1745687299563,4.645,1803.7,1803.6,5.54441583]
[1745687299990,4.645,1803.7,1803.5,6.33995317]
[1745687300177,4.645,1803.7,1803.6,0.5183726]
[1745687300780,5.4012,1803.7,1803.6,0.5183726]
[1745687300986,6.49571646,1803.7,1803.6,0.5183726]
[1745687301874,4.645,1803.7,1803.4,5.54486119]
[1745687302090,4.645,1803.7,1803.5,5.5447589]
[1745687302709,4.645,1803.7,1803.6,0.51850197]
[1745687303420,4.645,1803.7,1803.6,1.31380197]
[1745687303571,16.651,1803.9,1803.6,6.85826859]
[1745687303777,4.645,1803.8,1803.7,6.06244954]
[1745687304904,4.645,1803.8,1803.7,0.51850197]
[1745687306482,4.645,1803.8,1803.5,6.33222399]
[1745687306987,4.645,1803.8,1803.6,0.518416]
[1745687307190,6.31985922,1803.7,1803.6,0.518416]
[1745687307593,6.31985922,1803.7,1803.3,5.54528309]
[1745687308006,6.31985922,1803.7,1803.4,0.51861532]
[1745687308417,6.31985922,1803.7,1803.3,5.54528309]
[1745687308919,0.74802104,1803.7,1803.4,5.54507765]
[1745687309532,0.74802104,1803.7,1803.5,0.51870004]
[1745687310181,0.74802104,1803.7,1803.4,5.54507765]
[1745687310596,0.74802104,1803.7,1803.3,5.54521657]
[1745687310924,0.74802104,1803.7,1803.4,0.51877527]
[1745687311139,6.29224119,1803.7,1803.5,0.51877527]
[1745687311323,4.645,1803.6,1803.5,0.51877527]
[1745687311527,4.645,1803.6,1803.2,5.54552307]
[1745687311830,4.645,1803.6,1803.3,0.51882541]
[1745687312227,4.645,1803.6,1803.4,0.51882541]
[1745687313125,4.645,1803.6,1803.2,5.54545075]
[1745687313285,4.645,1803.6,1803.2,6.74335091]
[1745687313676,4.645,1803.6,1803.3,0.51903703]
[1745687313845,10.18946964,1803.6,1803.3,0.51903703]
[1745687314133,10.18946964,1803.6,1803.4,0.51903703]
[1745687314483,10.18946964,1803.6,1803.2,12.28883176]
[1745687315112,10.18946964,1803.6,1803.3,0.51906194]
[1745687315512,4.645,1803.6,1803.3,0.51906194]
[1745687315825,10.18948053,1803.6,1803.4,0.51906194]
[1745687316290,10.18948053,1803.6,1803.2,6.74335091]
[1745687316620,10.18948053,1803.6,1803.3,0.51914728]
[1745687317130,5.54499088,1803.5,1803.3,0.51914728]
[1745687317341,10.1896452,1803.6,1803.4,0.51914728]
[1745687317577,1.01896452,1803.5,1803.4,0.51914728]
[1745687317731,10.1896452,1803.6,1803.2,5.54569233]
[1745687317933,0.7523,1803.5,1803.1,6.43356213]
[1745687318279,6.29710918,1803.5,1803.2,0.51921447]
[1745687318477,0.7523,1803.5,1803.2,0.51921447]
[1745687318658,0.7523,1803.5,1803.3,0.51921447]
[1745687319063,0.7523,1803.5,1803.4,0.51921447]
[1745687320668,5.4517,1803.6,1803.4,0.51921447]
[1745687321192,5.4517,1803.6,1803.2,11.09096974]
[1745687321376,5.4517,1803.6,1803.2,6.74333301]
[1745687321744,10.99617587,1803.6,1803.3,0.51918855]
[1745687321947,4.645,1803.6,1803.4,5.54508077]
[1745687322169,4.645,1803.6,1803.4,6.06426932]
[1745687322669,4.645,1803.6,1803.5,0.51918855]
[1745687326204,5.9284,1803.6,1803.2,5.54556765]
[1745687326854,5.9284,1803.6,1803.3,0.51913383]
[1745687327063,5.9284,1803.6,1803.4,0.51913383]
[1745687327660,5.9284,1803.6,1803.2,5.54556765]
[1745687328284,5.9284,1803.6,1803.3,6.06447935]
[1745687328846,5.9284,1803.6,1803.4,0.51909647]
[1745687329047,5.9284,1803.6,1803.3,5.54538288]
[1745687329984,5.9284,1803.6,1803.4,0.51911248]
[1745687330683,5.9284,1803.6,1803.3,5.54527439]
[1745687330888,5.4639,1803.6,1803.3,5.54527439]
[1745687331684,5.4639,1803.6,1803.4,0.51908579]
[1745687331989,5.4639,1803.6,1803.5,0.51908579]
[1745687332351,4.645,1803.6,1803.5,0.51908579]
[1745687338993,4.645,1803.6,1803.5,6.06385984]
[1745687342302,23.40008409,1803.9,1803.5,1.67995285]
[1745687342465,4.645,1803.6,1803.5,6.06385984]
[1745687342804,22.64938409,1803.9,1803.8,5.54385186]
[1745687342988,0.8259,1804.3,1803.9,5.54329997]
[1745687343302,4.645,1804.2,1804.0,5.54318552]
[1745687343675,4.645,1804.2,1803.8,6.35860826]
[1745687344085,4.644,1804.1,1803.8,11.90224102]
[1745687344263,4.644,1804.1,1803.9,6.06218932]
[1745687344866,4.644,1804.1,1803.9,5.54353265]
[1745687346600,4.644,1804.1,1803.9,5.54335393]
[1745687350112,4.644,1804.1,1804.0,5.54323725]
[1745687350409,4.644,1804.1,1803.9,5.54325]
[1745687352918,4.644,1804.1,1803.8,6.35861796]
[1745687352919,6.30748444,1804.0,1803.5,6.31886769]
[1745687353111,6.30748444,1804.0,1803.6,0.51771803]
[1745687353617,6.30748444,1804.0,1803.5,6.31886769]
[1745687354014,0.7641,1804.0,1803.6,5.54445851]
[1745687354320,6.30736829,1804.0,1803.6,5.54445851]
[1745687354819,0.7641,1804.0,1803.6,5.54445851]
[1745687355548,6.30735802,1804.0,1803.6,5.54445851]
[1745687356644,0.7641,1804.0,1803.6,5.54445851]
[1745687356852,0.7641,1804.0,1803.7,5.54411638]
[1745687357705,11.40748409,1804.1,1803.8,5.54361541]
[1745687358405,11.40748409,1804.1,1804.0,5.54323725]
[1745687358406,5.99938409,1804.1,1804.0,5.54323725]
[1745687358725,4.644,1804.1,1804.0,5.54323725]
[1745687359909,4.644,1804.1,1803.9,5.54341082]
[1745687362957,4.644,1804.1,1804.0,5.54323725]
[1745687365557,4.644,1804.1,1803.9,5.54336099]
[1745687367623,4.644,1804.1,1803.9,5.54354454]
[1745687367975,4.644,1804.1,1804.0,0.51826781]
[1745687368565,4.644,1804.1,1804.0,6.06150506]
[1745687370153,4.644,1804.1,1804.0,0.51826781]
[1745687370362,4.644,1804.1,1803.9,5.54344483]
[1745687371464,4.644,1804.1,1804.0,0.5185553]
[1745687372277,4.644,1804.1,1803.9,5.54344483]
[1745687373124,4.644,1804.1,1804.0,0.51861164]
[1745687374465,4.644,1804.1,1803.9,5.54344483]
[1745687375263,4.644,1804.1,1804.0,0.51864007]
[1745687375665,4.643,1804.1,1804.0,1.89764037]
[1745687375828,4.643,1804.1,1804.0,6.83467732]
[1745687376029,16.651,1804.4,1804.3,5.54231557]
[1745687376232,21.294,1804.4,1804.3,6.31511557]
[1745687376729,21.294,1804.4,1804.3,6.83326088]
[1745687377467,21.294,1804.4,1804.3,6.83317399]
[1745687377623,21.294,1804.4,1804.3,8.74814897]
[1745687377826,4.643,1804.4,1804.3,8.74814897]
[1745687378379,20.84582221,1805.1,1804.8,5.54061669]
[1745687378534,4.643,1805.0,1804.8,6.31341669]
[1745687379854,4.643,1805.0,1804.8,0.7728]
[1745687380058,4.643,1805.0,1804.7,5.54091756]
[1745687380400,12.82420956,1805.0,1804.6,0.7728]
[1745687380536,10.86074992,1805.0,1804.5,5.54147493]
[1745687380874,10.86074992,1805.0,1804.5,5.5417013]
[1745687381077,10.86074992,1805.0,1804.6,5.54136149]
[1745687381641,10.18334343,1805.0,1804.6,5.54136149]
[1745687382079,4.643,1805.0,1804.7,5.54093257]
[1745687383583,4.643,1805.0,1804.6,5.54120487]
[1745687384083,0.8092,1804.8,1804.4,11.8564671]
[1745687384377,0.8092,1804.8,1804.5,5.54169621]
[1745687385939,0.8092,1804.8,1804.5,11.08320376]
[1745687386141,0.8092,1804.8,1804.5,12.26880414]
[1745687386774,0.8092,1805.0,1804.5,1.18560038]
[1745687386971,4.641,1804.8,1804.6,0.7568]
[1745687387978,4.641,1804.8,1804.7,5.54108716]
[1745687391301,4.641,1804.8,1804.6,0.7568]
[1745687391584,4.641,1804.8,1804.6,5.54121897]
[1745687392703,4.641,1804.8,1804.6,11.08237998]
[1745687392891,4.641,1804.8,1804.7,5.54108716]
[1745687395712,4.641,1804.8,1804.7,6.35748716]
[1745687400616,4.641,1804.8,1804.7,5.54108716]
[1745687402283,17.3907,1805.3,1805.0,5.54015434]
[1745687402483,4.64,1805.2,1805.0,5.54015434]
[1745687403919,4.64,1805.2,1804.9,5.54046314]
[1745687404237,4.64,1805.2,1804.7,6.35729857]
[1745687404388,4.64,1805.2,1804.8,1.1533115]
[1745687404821,4.64,1805.2,1804.9,0.51758164]
[1745687405599,10.17955502,1805.2,1804.9,0.51758164]
[1745687405811,10.17955502,1805.2,1804.8,6.17646808]
[1745687406230,4.64,1805.2,1804.8,6.17646808]
[1745687406429,4.64,1805.2,1804.9,0.61764681]
[1745687406625,10.17956686,1805.2,1805.0,0.51873397]
[1745687407297,10.17956686,1805.2,1804.9,0.61764681]
[1745687408241,10.17956686,1805.2,1805.0,0.51876675]
[1745687408704,10.17956686,1805.2,1804.9,0.61764681]
[1745687409854,10.17956686,1805.2,1805.0,0.5186465]
[1745687410435,10.17956686,1805.2,1804.9,0.61764681]
[1745687411343,10.17956686,1805.2,1805.0,0.51859093]
[1745687411504,15.71937751,1805.2,1805.0,0.51859093]
[1745687411705,10.17956686,1805.2,1804.9,0.61764681]
[1745687411905,10.17956686,1805.2,1804.8,0.63572986]
[1745687412105,10.17956686,1805.2,1804.9,0.51862088]
[1745687412639,10.17956686,1805.2,1804.8,6.17647598]
[1745687413337,10.17956686,1805.2,1804.9,0.51860475]
[1745687413919,10.17956686,1805.2,1805.0,0.51860475]
[1745687414452,10.17956686,1805.2,1804.8,6.17632908]
[1745687414649,10.17956686,1805.2,1804.9,0.61763291]
[1745687415348,10.17956686,1805.2,1805.0,0.51850715]
[1745687415847,10.17956686,1805.2,1804.9,0.61763291]
[1745687416644,10.17956686,1805.2,1805.0,0.51856079]
[1745687417109,10.17956686,1805.2,1804.8,6.17632908]
[1745687417441,4.64,1805.2,1804.9,6.15804444]
[1745687417643,4.64,1805.1,1805.0,5.5400312]
[1745687418146,4.64,1805.1,1805.0,6.05854314]
[1745687420854,10.98855928,1805.1,1805.0,0.51851194]
[1745687421058,12.08741521,1805.1,1805.0,0.51851194]
[1745687421351,5.54035496,1805.0,1804.5,5.54150268]
[1745687421648,5.54035496,1805.0,1804.6,0.51845653]
[1745687421857,1.48610649,1805.0,1804.6,0.51845653]
[1745687422031,5.54095738,1804.8,1804.7,0.51845653]
[1745687422225,6.98462312,1804.8,1804.7,0.51845653]
[1745687422442,5.54134668,1804.7,1804.3,0.51845653]
[1745687422644,4.639,1804.6,1804.3,0.51845653]
[1745687423259,4.639,1804.6,1804.4,0.51845653]
[1745687423759,4.639,1804.6,1804.2,6.37123597]
[1745687423923,4.639,1804.6,1804.3,0.6371236]
[1745687424327,4.639,1804.6,1804.3,6.17943133]
[1745687424626,4.639,1804.6,1804.4,0.51836949]
[1745687425022,4.639,1804.6,1804.3,6.17943133]
[1745687425759,4.639,1804.6,1804.4,0.51820725]
[1745687426121,4.639,1804.6,1804.5,0.51820725]
[1745687427070,4.639,1804.6,1804.3,6.17943133]
[1745687427667,4.639,1804.6,1804.4,0.51801945]
[1745687427958,4.639,1804.6,1804.3,6.17943133]
[1745687428163,4.639,1804.6,1804.3,0.6371236]
[1745687428378,10.18041181,1804.6,1804.3,0.6371236]
[1745687428878,10.18041181,1804.6,1804.4,0.51797715]
[1745687429347,10.18041181,1804.6,1804.2,6.37115194]
[1745687429543,10.18041181,1804.6,1804.2,7.56256012]
[1745687429732,10.18041181,1804.6,1804.3,0.51785852]
[1745687429936,0.8205,1804.5,1804.3,0.51785852]
[1745687430365,0.8205,1804.5,1804.1,6.35316459]
[1745687430573,6.36242795,1804.5,1804.1,0.8104]
[1745687430881,6.3268628,1804.3,1804.2,0.51790218]
[1745687431059,5.54295687,1804.1,1803.7,6.33101408]
[1745687431232,4.639,1804.0,1803.7,6.33101408]
[1745687431767,4.639,1804.0,1803.8,0.51780351]
[1745687432271,10.18240533,1804.0,1803.7,0.787]
[1745687432469,10.96690533,1804.0,1803.6,5.54439743]
[1745687432974,10.96690533,1804.0,1803.7,0.5174532]
[1745687433776,5.4235,1804.0,1803.7,5.54400994]
[1745687434015,4.639,1804.0,1803.8,5.54360539]
[1745687434179,4.639,1804.0,1803.9,5.54354454]
[1745687434337,4.639,1804.0,1803.8,6.32831783]
[1745687437096,4.639,1804.0,1803.6,6.32892081]
[1745687437239,10.18239669,1804.0,1803.6,6.32892081]
[1745687437540,4.639,1804.0,1803.7,5.54403586]
[1745687437747,4.639,1804.0,1803.7,11.0880311]
[1745687438180,4.639,1804.0,1803.8,5.54382266]
[1745687438383,4.639,1804.0,1803.7,5.54401295]
[1745687439382,4.639,1804.0,1803.7,5.54393589]
[1745687439583,4.639,1804.0,1803.8,5.54373688]
[1745687440785,4.639,1804.0,1803.8,5.54366465]
[1745687441089,4.639,1804.0,1803.9,5.54354454]
[1745687441290,4.641,1804.0,1803.9,6.31114454]
[1745687441535,4.641,1804.0,1803.9,7.49663282]
[1745687441789,5.99938409,1804.3,1804.0,5.54309022]
[1745687441948,4.641,1804.2,1804.0,5.54309022]
[1745687442381,4.641,1804.2,1803.9,7.4963985]
[1745687442807,6.29924042,1804.1,1803.7,7.54996063]
[1745687443390,6.29924042,1804.1,1803.7,6.78236063]
[1745687445098,0.7563,1804.1,1803.7,6.78227102]
[1745687445286,0.7563,1804.1,1803.8,5.54382539]
[1745687445792,0.7563,1804.1,1803.7,6.78227102]
[1745687446096,6.29931135,1804.1,1803.7,6.78227102]
[1745687446895,4.641,1804.2,1803.8,5.54368142]
[1745687447096,4.641,1804.2,1804.0,5.5430756]
[1745687447794,4.641,1804.2,1804.1,5.54292999]
[1745687448668,4.641,1804.2,1804.0,5.54307263]
[1745687448967,4.641,1804.2,1803.9,11.89138182]
[1745687449210,4.641,1804.2,1804.0,1.70617943]
[1745687449408,0.7565,1804.1,1804.0,0.51704125]
[1745687450144,0.7565,1804.1,1803.9,5.54354187]
[1745687450442,0.7565,1804.1,1803.7,6.34029486]
[1745687450443,0.7565,1804.1,1803.8,5.54372656]
[1745687451006,0.7565,1804.1,1803.9,0.51784966]
[1745687451206,0.7565,1804.1,1803.8,5.54372656]
[1745687451406,0.7565,1804.1,1803.8,6.73202038]
[1745687452337,0.7565,1804.1,1803.9,0.51810235]
[1745687452844,0.7565,1804.1,1803.7,14.08785437]
[1745687453052,0.7565,1804.1,1803.8,5.54383644]
[1745687453255,0.7565,1804.1,1803.8,6.06200831]
[1745687453667,0.7565,1804.1,1803.8,5.54383644]
[1745687453954,6.29943863,1804.1,1803.7,8.54391899]
[1745687454319,6.29943863,1804.1,1803.7,10.03238155]
[1745687454955,0.7565,1804.1,1803.8,0.5182821]
[1745687455458,0.7565,1804.1,1803.7,12.57631227]
[1745687455958,4.641,1804.0,1803.8,5.54371605]
[1745687456158,4.641,1804.0,1803.9,0.51834502]
[1745687458062,4.641,1804.0,1803.9,6.6680852]
[1745687460354,4.641,1804.0,1803.9,7.4948852]
[1745687466838,16.639,1804.4,1804.0,5.54307156]
[1745687467041,4.641,1804.3,1804.1,5.54270616]
[1745687467362,4.641,1804.3,1804.2,0.51834502]
[1745687467566,4.641,1804.3,1804.2,6.06096778]
[1745687468474,4.641,1804.3,1804.2,0.51834502]
[1745687469389,4.641,1804.3,1804.1,5.54292613]
[1745687470095,0.8098,1804.2,1803.9,5.54335293]
[1745687470441,0.8098,1804.2,1804.0,0.51932949]
[1745687470964,0.8098,1804.2,1804.1,0.51932949]
[1745687471336,4.641,1804.3,1804.1,6.06225948]
[1745687471536,4.641,1804.3,1804.1,0.51932949]
[1745687471768,4.641,1804.3,1804.2,0.51932949]
[1745687476642,10.18331557,1804.3,1804.2,0.51932949]
[1745687476980,4.641,1804.3,1804.2,0.51932949]
[1745687477156,4.641,1804.3,1804.0,5.54319345]
[1745687477556,4.641,1804.3,1804.1,0.51929066]
[1745687477760,10.18342582,1804.3,1804.1,0.51929066]
[1745687478270,0.7539,1804.2,1803.9,5.54347282]
[1745687478570,0.7539,1804.2,1804.0,0.5193493]
[1745687478983,0.7539,1804.2,1803.9,5.54347282]
[1745687479484,0.7539,1804.2,1803.8,6.32187704]
[1745687479685,6.29674388,1804.2,1803.6,0.7782]
[1745687479881,6.29674388,1804.2,1803.8,5.54377766]
[1745687480274,6.29674388,1804.2,1803.9,0.51933477]
[1745687480685,6.29674388,1804.2,1804.0,0.51933477]
[1745687480996,4.64,1804.1,1804.0,0.51933477]
[1745687486683,4.64,1804.1,1803.9,5.54346488]
[1745687487631,4.64,1804.1,1803.8,5.54369329]
[1745687487838,1.2887,1804.0,1803.4,0.7818]
[1745687488042,5.54442723,1803.7,1803.3,5.54536721]
[1745687488242,5.4657,1803.6,1803.3,5.54538137]
[1745687488399,5.4657,1803.6,1803.3,6.17809951]
[1745687488799,5.4657,1803.6,1803.3,6.17786128]
[1745687489032,5.4657,1803.6,1803.4,5.54506139]
[1745687489396,5.4657,1803.6,1803.3,6.17791045]
[1745687489943,5.4657,1803.6,1803.3,6.17800927]
[1745687490098,5.4657,1803.6,1803.3,5.54529113]
[1745687492730,5.4657,1803.6,1803.2,6.32736166]
[1745687492943,11.01019983,1803.6,1803.2,6.32736166]
[1745687493236,5.4657,1803.6,1803.3,5.54520222]
[1745687493536,5.4657,1803.6,1803.2,0.7818]
[1745687493732,5.4657,1803.6,1803.3,5.54522139]
[1745687494038,4.641,1803.6,1803.4,5.5450587]
[1745687494537,4.641,1803.6,1803.4,11.08991398]
[1745687494735,4.641,1803.6,1803.4,6.14286281]
[1745687495936,4.641,1803.6,1803.4,5.54485528]
[1745687496143,4.641,1803.6,1803.3,5.54522093]
[1745687496303,6.32775937,1803.5,1803.1,0.1]
[1745687496613,6.32775937,1803.5,1803.1,5.64596953]
[1745687497306,7.82726218,1803.5,1803.1,5.64596953]
[1745687497501,6.32775937,1803.5,1803.1,5.64596953]
[1745687497738,0.7828,1803.5,1803.1,5.6457879]
[1745687498041,0.7828,1803.5,1803.2,5.54566226]
[1745687499044,0.7828,1803.5,1803.2,5.49566226]
[1745687499205,0.7828,1803.5,1803.1,5.64585273]
[1745687501139,6.32762891,1803.5,1803.1,5.64585273]
[1745687501440,6.29747729,1803.4,1803.1,0.1]
[1745687502111,0.7522,1803.4,1803.1,0.1]
[1745687503304,6.29728337,1803.4,1803.1,0.1]
[1745687504056,5.54551511,1803.3,1803.1,0.1]
[1745687504211,4.641,1803.2,1803.1,5.6460041]
[1745687505007,4.641,1803.2,1803.1,0.1]
[1745687505959,4.641,1803.2,1803.1,5.6460041]
[1745687510476,5.99938409,1803.6,1803.5,5.54477405]
[1745687510625,21.293,1803.7,1803.6,6.34256662]
[1745687510825,4.642,1803.8,1803.7,5.54415922]
[1745687511025,6.75988409,1804.2,1804.0,5.54322648]
[1745687511350,4.642,1804.1,1803.9,5.54337082]
[1745687512047,0.7605,1804.2,1803.9,5.54337082]
[1745687512218,4.641,1804.0,1803.9,5.54337082]
[1745687512425,0.7605,1804.2,1803.9,5.54337082]
[1745687512626,4.641,1804.1,1804.0,5.54323525]
[1745687515352,5.4065,1804.1,1803.7,0.7823]
[1745687515672,5.8706,1804.1,1803.7,5.54407115]
[1745687515967,5.8706,1804.1,1803.7,5.54392692]
[1745687516471,5.8706,1804.1,1803.8,5.54383636]
[1745687518873,0.7701,1804.0,1803.7,5.54392692]
[1745687520371,1.91191618,1804.0,1803.6,5.54439499]
[1745687520575,7.45525622,1804.0,1803.6,5.54439499]
[1745687520746,1.91191618,1804.0,1803.6,5.5442727]
[1745687521075,4.641,1804.1,1803.8,11.08744438]
[1745687521373,4.641,1804.1,1803.8,5.54360839]
[1745687521938,3.96817998,1804.3,1804.1,5.54292999]
[1745687522164,3.96817998,1804.3,1803.9,0.8143]
[1745687522165,4.64,1804.2,1803.9,0.8143]
[1745687522350,10.18277992,1804.2,1803.8,5.54358364]
[1745687522753,10.18277992,1804.2,1803.4,6.35923988]
[1745687522754,6.31395369,1803.8,1803.4,6.35923988]
[1745687523043,10.18429298,1803.7,1803.2,6.35988815]
[1745687523340,10.18429298,1803.7,1803.1,0.1]
[1745687523341,0.7701,1803.6,1803.1,0.1]
[1745687523874,0.7701,1803.6,1803.3,5.54522623]
[1745687524073,0.7701,1803.6,1803.2,5.54545055]
[1745687524369,0.7701,1803.6,1803.1,0.1]
[1745687524370,0.7755,1803.3,1803.1,0.1]
[1745687524572,4.64,1803.2,1803.1,0.1]
[1745687525073,4.64,1803.2,1803.1,5.6460041]
[1745687527035,0.7755,1803.6,1803.2,5.54569653]
[1745687527236,4.641,1803.5,1803.2,5.54569653]
[1745687528444,4.641,1803.5,1803.1,6.47157125]
[1745687528741,4.641,1803.5,1803.1,6.47145821]
[1745687529866,4.641,1803.5,1803.2,5.54553345]
[1745687530266,4.641,1803.5,1803.3,5.54532693]
[1745687530857,4.641,1803.5,1803.2,5.54556865]